[Event "*** SCC Grand Prix: Titled Tuesday Blitz"]
[Site "Chess.com"]
[Date "2020.09.29"]
[Round "3"]
[White "Susal_De_Silva"]
[Black "RasSanti"]
[Result "1-0"]
[WhiteElo "2527"]
[BlackElo "2319"]
[TimeControl "180+1"]
[EndTime "10:26:58 PDT"]
[Termination "Susal_De_Silva won on time"]

1. e4 {[%clk 0:03:00.9]} 1... e5 {[%clk 0:02:56.7]} 2. Nf3 {[%clk 0:03:01]} 2...
Nc6 {[%clk 0:02:56]} 3. Bc4 {[%clk 0:03:00.9]} 3... Bc5 {[%clk 0:02:54.2]} 4.
O-O {[%clk 0:03:00.1]} 4... d6 {[%clk 0:02:46.5]} 5. c3 {[%clk 0:02:59]} 5...
Nf6 {[%clk 0:02:19.4]} 6. d3 {[%clk 0:02:54.5]} 6... O-O {[%clk 0:02:18]} 7. h3
{[%clk 0:02:52.4]} 7... h6 {[%clk 0:02:17.3]} 8. Re1 {[%clk 0:02:49.4]} 8... Be6
{[%clk 0:02:03.3]} 9. Bb3 {[%clk 0:02:47.6]} 9... Bb6 {[%clk 0:01:51.2]} 10.
Nbd2 {[%clk 0:02:46]} 10... Qd7 {[%clk 0:01:42.1]} 11. Nf1 {[%clk 0:02:43]}
11... Rad8 {[%clk 0:01:36.7]} 12. Ng3 {[%clk 0:02:36.1]} 12... Rfe8 {[%clk
0:01:36.6]} 13. d4 {[%clk 0:02:17.4]} 13... Bxb3 {[%clk 0:01:28.7]} 14. axb3
{[%clk 0:02:15.4]} 14... d5 {[%clk 0:01:25.1]} 15. exd5 {[%clk 0:02:07.8]} 15...
Qxd5 {[%clk 0:01:16.2]} 16. c4 {[%clk 0:02:05.1]} 16... Qd7 {[%clk 0:01:09.3]}
17. d5 {[%clk 0:01:58.7]} 17... e4 {[%clk 0:00:43.1]} 18. Nh2 {[%clk 0:01:40]}
18... Qd6 {[%clk 0:00:34.9]} 19. Be3 {[%clk 0:01:37.7]} 19... Nb4 {[%clk
0:00:24.9]} 20. Ng4 {[%clk 0:01:26.6]} 20... Nd3 {[%clk 0:00:20.5]} 21. Re2
{[%clk 0:01:15]} 21... Nxg4 {[%clk 0:00:19.1]} 22. hxg4 {[%clk 0:01:15.4]} 22...
Bxe3 {[%clk 0:00:18.7]} 23. Rxe3 {[%clk 0:01:12.6]} 23... c6 {[%clk 0:00:16.4]}
24. Nxe4 {[%clk 0:01:10.1]} 24... Qb4 {[%clk 0:00:13.4]} 25. Qxd3 {[%clk
0:01:08]} 25... cxd5 {[%clk 0:00:13.3]} 26. cxd5 {[%clk 0:01:06.1]} 26... a6
{[%clk 0:00:12.4]} 27. Rae1 {[%clk 0:01:05.5]} 27... Rf8 {[%clk 0:00:12]} 28.
Nc3 {[%clk 0:01:04.6]} 28... Rd6 {[%clk 0:00:10.9]} 29. Re7 {[%clk 0:01:03.8]}
29... Qxg4 {[%clk 0:00:09.9]} 30. Qg3 {[%clk 0:01:02.7]} 30... Qxg3 {[%clk
0:00:08.1]} 31. fxg3 {[%clk 0:01:03.6]} 31... Rb6 {[%clk 0:00:08]} 32. Rc7
{[%clk 0:01:00.7]} 32... Rd8 {[%clk 0:00:06.2]} 33. Ree7 {[%clk 0:00:59.8]}
33... Rf6 {[%clk 0:00:04.1]} 34. Ne4 {[%clk 0:00:58.4]} 34... Rf5 {[%clk
0:00:01.9]} 35. d6 {[%clk 0:00:58.8]} 1-0

[Event "*** SCC Grand Prix: Titled Tuesday Blitz"]
[Site "Chess.com"]
[Date "2020.09.29"]
[Round "3"]
[White "Zmeeed63"]
[Black "TST2014"]
[Result "0-1"]
[WhiteElo "2362"]
[BlackElo "2562"]
[TimeControl "180+1"]
[EndTime "10:26:59 PDT"]
[Termination "TST2014 won on time"]

1. d4 {[%clk 0:03:00.9]} 1... Nf6 {[%clk 0:02:58.3]} 2. c4 {[%clk 0:03:00.8]}
2... c5 {[%clk 0:02:57.3]} 3. d5 {[%clk 0:03:00.8]} 3... b5 {[%clk 0:02:56.9]}
4. cxb5 {[%clk 0:03:01.7]} 4... a6 {[%clk 0:02:57]} 5. Nc3 {[%clk 0:03:02.6]}
5... axb5 {[%clk 0:02:54.2]} 6. e4 {[%clk 0:03:03.2]} 6... b4 {[%clk 0:02:52.9]}
7. Nb5 {[%clk 0:03:03.8]} 7... d6 {[%clk 0:02:51.6]} 8. Bf4 {[%clk 0:03:04.2]}
8... g6 {[%clk 0:02:42.3]} 9. e5 {[%clk 0:03:03.2]} 9... dxe5 {[%clk 0:02:35.3]}
10. Bxe5 {[%clk 0:03:03.2]} 10... Na6 {[%clk 0:02:32.5]} 11. d6 {[%clk
0:02:14.9]} 11... Bg7 {[%clk 0:02:26.5]} 12. Nc7+ {[%clk 0:02:13.5]} 12... Nxc7
{[%clk 0:02:25.3]} 13. dxc7 {[%clk 0:02:14.4]} 13... Qxd1+ {[%clk 0:02:14.9]}
14. Rxd1 {[%clk 0:02:15.3]} 14... O-O {[%clk 0:02:14.9]} 15. Bc4 {[%clk
0:02:07.7]} 15... Nd7 {[%clk 0:02:12.7]} 16. Bxg7 {[%clk 0:01:49.4]} 16... Kxg7
{[%clk 0:02:13.6]} 17. Bb5 {[%clk 0:01:45.9]} 17... Nb6 {[%clk 0:02:03.8]} 18.
Rc1 {[%clk 0:01:23.9]} 18... Rxa2 {[%clk 0:01:56.1]} 19. Nf3 {[%clk 0:01:18.3]}
19... Ra7 {[%clk 0:01:40]} 20. O-O {[%clk 0:00:56.7]} 20... Rxc7 {[%clk
0:01:38.4]} 21. Ne5 {[%clk 0:00:54.4]} 21... Be6 {[%clk 0:01:32.2]} 22. Rfd1
{[%clk 0:00:48.1]} 22... Rfc8 {[%clk 0:01:31.2]} 23. Nd3 {[%clk 0:00:37.6]}
23... b3 {[%clk 0:01:12.6]} 24. Rc3 {[%clk 0:00:31]} 24... c4 {[%clk 0:00:58.7]}
25. Nf4 {[%clk 0:00:27.1]} 25... Bf5 {[%clk 0:00:52.9]} 26. f3 {[%clk
0:00:19.2]} 26... Rc5 {[%clk 0:00:52.7]} 27. Ba6 {[%clk 0:00:15.9]} 27... R8c7
{[%clk 0:00:49.4]} 28. Rd2 {[%clk 0:00:08.8]} 28... Ra7 {[%clk 0:00:48.6]} 29.
g4 {[%clk 0:00:05]} 29... Bc2 {[%clk 0:00:45.4]} 0-1

[Event "*** SCC Grand Prix: Titled Tuesday Blitz"]
[Site "Chess.com"]
[Date "2020.09.29"]
[Round "3"]
[White "barbara25"]
[Black "Khnykin_Nikolay"]
[Result "1-0"]
[WhiteElo "2345"]
[BlackElo "2075"]
[TimeControl "180+1"]
[EndTime "10:27:00 PDT"]
[Termination "barbara25 won by checkmate"]

1. e4 {[%clk 0:03:00.9]} 1... e6 {[%clk 0:02:59]} 2. d4 {[%clk 0:02:59.8]} 2...
d5 {[%clk 0:02:58.9]} 3. Nc3 {[%clk 0:02:54.6]} 3... Bb4 {[%clk 0:02:58.2]} 4.
e5 {[%clk 0:02:52.5]} 4... c5 {[%clk 0:02:57.6]} 5. a3 {[%clk 0:02:52.5]} 5...
Bxc3+ {[%clk 0:02:54.5]} 6. bxc3 {[%clk 0:02:53.4]} 6... Nc6 {[%clk 0:02:54.1]}
7. f4 {[%clk 0:02:40.9]} 7... Qh4+ {[%clk 0:02:47.3]} 8. g3 {[%clk 0:02:38.1]}
8... Qd8 {[%clk 0:02:45.9]} 9. Nf3 {[%clk 0:02:36.8]} 9... Nh6 {[%clk
0:02:45.4]} 10. Bg2 {[%clk 0:02:32.7]} 10... Nf5 {[%clk 0:02:44]} 11. g4 {[%clk
0:02:31.5]} 11... Nh4 {[%clk 0:02:37.2]} 12. O-O {[%clk 0:02:27.6]} 12... Nxf3+
{[%clk 0:02:36.8]} 13. Bxf3 {[%clk 0:02:27.3]} 13... cxd4 {[%clk 0:02:36.3]} 14.
cxd4 {[%clk 0:02:26.9]} 14... Qh4 {[%clk 0:02:36.5]} 15. c3 {[%clk 0:02:22.6]}
15... O-O {[%clk 0:02:35.4]} 16. Be3 {[%clk 0:02:19.7]} 16... Bd7 {[%clk
0:02:34.9]} 17. Bf2 {[%clk 0:02:19.5]} 17... Qe7 {[%clk 0:02:33.7]} 18. Qd3
{[%clk 0:02:17.3]} 18... f5 {[%clk 0:02:33.4]} 19. exf6 {[%clk 0:02:14.5]} 19...
Rxf6 {[%clk 0:02:32.6]} 20. Bg3 {[%clk 0:02:14.8]} 20... Rff8 {[%clk 0:02:24.8]}
21. Bd1 {[%clk 0:02:14.2]} 21... Qf6 {[%clk 0:02:18.3]} 22. Bc2 {[%clk
0:02:13.8]} 22... g6 {[%clk 0:02:14.7]} 23. Rae1 {[%clk 0:02:12.4]} 23... Qg7
{[%clk 0:02:07.5]} 24. h4 {[%clk 0:02:08.1]} 24... e5 {[%clk 0:02:05.7]} 25.
fxe5 {[%clk 0:02:07.5]} 25... Bxg4 {[%clk 0:02:04.6]} 26. Qb5 {[%clk 0:02:04.4]}
26... Be6 {[%clk 0:01:50.1]} 27. Bb3 {[%clk 0:02:03.9]} 27... g5 {[%clk
0:01:47.9]} 28. h5 {[%clk 0:02:02.5]} 28... Rfd8 {[%clk 0:01:23]} 29. Rf6 {[%clk
0:01:59.2]} 29... Bf7 {[%clk 0:01:20.1]} 30. h6 {[%clk 0:01:57]} 30... Qf8
{[%clk 0:01:14.5]} 31. e6 {[%clk 0:01:54.1]} 31... Qxa3 {[%clk 0:00:27.1]} 32.
exf7+ {[%clk 0:01:48.3]} 32... Kf8 {[%clk 0:00:26.4]} 33. Qc5+ {[%clk
0:01:41.7]} 33... Qxc5 {[%clk 0:00:25.3]} 34. dxc5 {[%clk 0:01:41.8]} 34... Ne7
{[%clk 0:00:20.1]} 35. Bd6 {[%clk 0:01:39.9]} 35... Rd7 {[%clk 0:00:20.2]} 36.
Ba4 {[%clk 0:01:33]} 36... b5 {[%clk 0:00:16.9]} 37. cxb6 {[%clk 0:01:32.5]}
37... Rxd6 {[%clk 0:00:16.1]} 38. Rxd6 {[%clk 0:01:32.2]} 38... axb6 {[%clk
0:00:17]} 39. Rde6 {[%clk 0:01:24.3]} 39... Rxa4 {[%clk 0:00:15.4]} 40. Rxe7
{[%clk 0:01:24]} 40... Rg4+ {[%clk 0:00:15.2]} 41. Kh2 {[%clk 0:01:21.5]} 41...
Rh4+ {[%clk 0:00:12.7]} 42. Kg3 {[%clk 0:01:21.3]} 42... Rc4 {[%clk 0:00:11.1]}
43. Rb7 {[%clk 0:01:19.6]} 43... Rxc3+ {[%clk 0:00:10.7]} 44. Kg4 {[%clk
0:01:20]} 44... Rc8 {[%clk 0:00:09.1]} 45. Re5 {[%clk 0:01:16.6]} 45... Rd8
{[%clk 0:00:05.5]} 46. Rxg5 {[%clk 0:01:16]} 46... d4 {[%clk 0:00:05.5]} 47.
Rg8# {[%clk 0:01:16]} 1-0

[Event "*** SCC Grand Prix: Titled Tuesday Blitz"]
[Site "Chess.com"]
[Date "2020.09.29"]
[Round "3"]
[White "Chuchofrio1"]
[Black "keepitcool9499"]
[Result "0-1"]
[WhiteElo "2397"]
[BlackElo "2613"]
[TimeControl "180+1"]
[EndTime "10:27:01 PDT"]
[Termination "keepitcool9499 won by resignation"]

1. d4 {[%clk 0:03:00.9]} 1... e6 {[%clk 0:03:00.9]} 2. c4 {[%clk 0:03:00.8]}
2... Nf6 {[%clk 0:03:01.6]} 3. Nc3 {[%clk 0:03:00.7]} 3... d5 {[%clk 0:03:02.5]}
4. cxd5 {[%clk 0:03:00.4]} 4... exd5 {[%clk 0:03:03.4]} 5. Bg5 {[%clk
0:02:59.3]} 5... Be7 {[%clk 0:03:01.8]} 6. e3 {[%clk 0:02:59.2]} 6... O-O {[%clk
0:03:01.8]} 7. Bd3 {[%clk 0:02:59.2]} 7... h6 {[%clk 0:02:45.9]} 8. Bh4 {[%clk
0:02:57.4]} 8... c6 {[%clk 0:02:45.2]} 9. Nge2 {[%clk 0:02:52.9]} 9... Ne4
{[%clk 0:02:42.3]} 10. Bxe7 {[%clk 0:02:44.6]} 10... Qxe7 {[%clk 0:02:43.2]} 11.
O-O {[%clk 0:02:31.1]} 11... Bf5 {[%clk 0:02:38.5]} 12. Qc2 {[%clk 0:02:26.7]}
12... Nd7 {[%clk 0:02:35.7]} 13. Rae1 {[%clk 0:02:23.7]} 13... Nxc3 {[%clk
0:02:32.9]} 14. Bxf5 {[%clk 0:02:04.8]} 14... Nxe2+ {[%clk 0:02:31]} 15. Rxe2
{[%clk 0:02:03.8]} 15... Rfe8 {[%clk 0:02:21.6]} 16. h3 {[%clk 0:02:03.4]} 16...
Nf6 {[%clk 0:02:19.4]} 17. Rb1 {[%clk 0:01:54.6]} 17... g6 {[%clk 0:02:12.5]}
18. Bd3 {[%clk 0:01:50.7]} 18... Kg7 {[%clk 0:02:12.5]} 19. b4 {[%clk
0:01:50.1]} 19... a6 {[%clk 0:02:09.5]} 20. a4 {[%clk 0:01:49.2]} 20... Qd6
{[%clk 0:02:05.9]} 21. Qb3 {[%clk 0:01:42]} 21... Re7 {[%clk 0:01:53.7]} 22. b5
{[%clk 0:01:39.5]} 22... cxb5 {[%clk 0:01:49.8]} 23. axb5 {[%clk 0:01:39]} 23...
a5 {[%clk 0:01:50]} 24. Rc2 {[%clk 0:01:37.1]} 24... Rc7 {[%clk 0:01:46.1]} 25.
Rbc1 {[%clk 0:01:34.2]} 25... a4 {[%clk 0:01:39.5]} 26. Qa2 {[%clk 0:01:30.8]}
26... Rxc2 {[%clk 0:01:36.8]} 27. Qxc2 {[%clk 0:01:20.4]} 27... Qb4 {[%clk
0:01:37.1]} 28. Rb1 {[%clk 0:01:17.4]} 28... Qa5 {[%clk 0:01:32.3]} 29. Ra1
{[%clk 0:01:01.6]} 29... a3 {[%clk 0:01:29.4]} 30. Qa2 {[%clk 0:01:01.5]} 30...
Qc3 {[%clk 0:01:26.4]} 31. Bf1 {[%clk 0:00:57.2]} 31... Ne4 {[%clk 0:01:16.1]}
32. Rb1 {[%clk 0:00:26.7]} 32... Nd2 {[%clk 0:01:09.1]} 33. Rd1 {[%clk
0:00:24.8]} 33... Nxf1 {[%clk 0:01:07.2]} 34. Rxf1 {[%clk 0:00:23.1]} 34... Qb2
{[%clk 0:01:07.6]} 35. Qxd5 {[%clk 0:00:19.6]} 35... a2 {[%clk 0:01:04.7]} 36.
Qe5+ {[%clk 0:00:19.3]} 36... Kg8 {[%clk 0:00:59]} 0-1

[Event "*** SCC Grand Prix: Titled Tuesday Blitz"]
[Site "Chess.com"]
[Date "2020.09.29"]
[Round "3"]
[White "BocharovD"]
[Black "AliKa2810"]
[Result "1-0"]
[WhiteElo "2777"]
[BlackElo "2556"]
[TimeControl "180+1"]
[EndTime "10:27:02 PDT"]
[Termination "BocharovD won by resignation"]

1. c4 {[%clk 0:03:00.9]} 1... Nf6 {[%clk 0:02:59.6]} 2. g3 {[%clk 0:02:58.5]}
2... e6 {[%clk 0:02:58.7]} 3. Bg2 {[%clk 0:02:58.4]} 3... d5 {[%clk 0:02:59.3]}
4. Nf3 {[%clk 0:02:58.2]} 4... dxc4 {[%clk 0:02:59.5]} 5. O-O {[%clk 0:02:57.3]}
5... c5 {[%clk 0:02:52.7]} 6. Na3 {[%clk 0:02:54.2]} 6... Nc6 {[%clk 0:02:51.2]}
7. Nxc4 {[%clk 0:02:53.7]} 7... Be7 {[%clk 0:02:49.8]} 8. b3 {[%clk 0:02:53.8]}
8... O-O {[%clk 0:02:49.4]} 9. Bb2 {[%clk 0:02:53.9]} 9... Nd5 {[%clk
0:02:44.7]} 10. d4 {[%clk 0:02:52.5]} 10... cxd4 {[%clk 0:02:40.5]} 11. Nxd4
{[%clk 0:02:52.1]} 11... Nxd4 {[%clk 0:02:41.1]} 12. Bxd4 {[%clk 0:02:51.1]}
12... Bf6 {[%clk 0:02:36.8]} 13. Rc1 {[%clk 0:02:49]} 13... Rb8 {[%clk
0:01:57.8]} 14. Qd2 {[%clk 0:02:44.4]} 14... a6 {[%clk 0:00:49.6]} 15. Rfd1
{[%clk 0:02:39.8]} 15... b5 {[%clk 0:00:48.9]} 16. Bxf6 {[%clk 0:02:30.2]} 16...
Qxf6 {[%clk 0:00:49.4]} 17. Nd6 {[%clk 0:02:29.9]} 17... Bd7 {[%clk 0:00:46.3]}
18. e4 {[%clk 0:02:29.7]} 18... Nb6 {[%clk 0:00:45.7]} 19. Qf4 {[%clk
0:02:11.6]} 19... e5 {[%clk 0:00:42.9]} 20. Qxf6 {[%clk 0:02:01.5]} 20... gxf6
{[%clk 0:00:43.8]} 21. Nf5 {[%clk 0:01:51.7]} 21... Rfd8 {[%clk 0:00:41.6]} 22.
Bf3 {[%clk 0:01:50.1]} 22... b4 {[%clk 0:00:33.7]} 23. Kg2 {[%clk 0:01:25.6]}
23... a5 {[%clk 0:00:32.9]} 24. Ne3 {[%clk 0:01:16]} 24... a4 {[%clk 0:00:32.8]}
25. Bg4 {[%clk 0:01:13.8]} 25... axb3 {[%clk 0:00:31.9]} 26. axb3 {[%clk
0:01:08.7]} 26... Bb5 {[%clk 0:00:31.3]} 27. Rc5 {[%clk 0:01:03.7]} 27... Bd3
{[%clk 0:00:29.7]} 28. Bf5 {[%clk 0:00:54.7]} 28... Ra8 {[%clk 0:00:25.6]} 29.
Rc6 {[%clk 0:00:52.8]} 29... Ra6 {[%clk 0:00:13.7]} 30. Rxf6 {[%clk 0:00:44.7]}
30... Kg7 {[%clk 0:00:13.5]} 31. Rc6 {[%clk 0:00:44.5]} 31... Rd4 {[%clk
0:00:09]} 32. Rdc1 {[%clk 0:00:41.1]} 32... Bxe4+ {[%clk 0:00:08.7]} 33. Bxe4
{[%clk 0:00:41]} 33... Rxe4 {[%clk 0:00:09.6]} 34. Nf5+ {[%clk 0:00:41.3]} 1-0

[Event "*** SCC Grand Prix: Titled Tuesday Blitz"]
[Site "Chess.com"]
[Date "2020.09.29"]
[Round "3"]
[White "teacher4chess"]
[Black "dpopadic"]
[Result "0-1"]
[WhiteElo "2011"]
[BlackElo "2323"]
[TimeControl "180+1"]
[EndTime "10:27:03 PDT"]
[Termination "dpopadic won by resignation"]

1. d4 {[%clk 0:02:59.1]} 1... Nf6 {[%clk 0:02:59.3]} 2. Nf3 {[%clk 0:02:58.6]}
2... g6 {[%clk 0:02:59.2]} 3. b3 {[%clk 0:02:58.6]} 3... Bg7 {[%clk 0:02:59.1]}
4. Bb2 {[%clk 0:02:59.1]} 4... O-O {[%clk 0:02:59.5]} 5. g3 {[%clk 0:02:57.3]}
5... d6 {[%clk 0:02:59.6]} 6. Bg2 {[%clk 0:02:57.3]} 6... c5 {[%clk 0:02:59.8]}
7. c4 {[%clk 0:02:54.9]} 7... Nc6 {[%clk 0:02:59.7]} 8. O-O {[%clk 0:02:51.8]}
8... a6 {[%clk 0:02:57.4]} 9. d5 {[%clk 0:02:46]} 9... Na5 {[%clk 0:02:57]} 10.
Nc3 {[%clk 0:02:38.4]} 10... Bd7 {[%clk 0:02:56.1]} 11. Rc1 {[%clk 0:02:37.6]}
11... b5 {[%clk 0:02:54.6]} 12. Re1 {[%clk 0:02:31.9]} 12... bxc4 {[%clk
0:02:53.8]} 13. bxc4 {[%clk 0:02:25.9]} 13... Nxc4 {[%clk 0:02:53.5]} 14. Ba1
{[%clk 0:02:26.3]} 14... Rb8 {[%clk 0:02:44.2]} 15. e4 {[%clk 0:02:24.8]} 15...
Na5 {[%clk 0:02:29.7]} 16. e5 {[%clk 0:02:21.8]} 16... Ne8 {[%clk 0:02:28.8]}
17. Ne4 {[%clk 0:02:09.2]} 17... Bf5 {[%clk 0:02:22.3]} 18. exd6 {[%clk
0:01:50.2]} 18... exd6 {[%clk 0:02:12.9]} 19. Nh4 {[%clk 0:01:39.7]} 19... Bxe4
{[%clk 0:02:08.4]} 20. Bxe4 {[%clk 0:01:39.3]} 20... Bxa1 {[%clk 0:02:07.3]} 21.
Rxa1 {[%clk 0:01:38.9]} 21... Nf6 {[%clk 0:02:04.9]} 22. Bg2 {[%clk 0:01:26.4]}
22... Re8 {[%clk 0:02:02.3]} 23. Qf3 {[%clk 0:01:18.5]} 23... Nd7 {[%clk
0:01:54]} 24. Qc3 {[%clk 0:01:09.9]} 24... Qb6 {[%clk 0:01:43.6]} 25. Bh3 {[%clk
0:01:04.6]} 25... Ne5 {[%clk 0:01:39.3]} 26. f4 {[%clk 0:01:02.8]} 26... c4+
{[%clk 0:01:36.9]} 27. Kh1 {[%clk 0:01:02.8]} 27... Nd3 {[%clk 0:01:37.1]} 28.
Rxe8+ {[%clk 0:00:59.1]} 28... Rxe8 {[%clk 0:01:36.5]} 29. Nf3 {[%clk
0:00:52.7]} 29... Qe3 {[%clk 0:01:29]} 30. Qxa5 {[%clk 0:00:42.3]} 30... Qxf3+
{[%clk 0:01:19.2]} 31. Bg2 {[%clk 0:00:42.3]} 31... Qe3 {[%clk 0:01:15.4]} 32.
Bf1 {[%clk 0:00:32.6]} 32... Qe4+ {[%clk 0:01:10.2]} 33. Bg2 {[%clk 0:00:32.5]}
33... Qd4 {[%clk 0:01:10.2]} 34. h3 {[%clk 0:00:26.6]} 34... Qxa1+ {[%clk
0:01:09.2]} 35. Kh2 {[%clk 0:00:21.3]} 35... Qd4 {[%clk 0:01:03.8]} 36. Qa4
{[%clk 0:00:17.4]} 36... Re2 {[%clk 0:01:02.4]} 37. Qd7 {[%clk 0:00:11.6]} 37...
Qf2 {[%clk 0:00:57.7]} 0-1

[Event "*** SCC Grand Prix: Titled Tuesday Blitz"]
[Site "Chess.com"]
[Date "2020.09.29"]
[Round "3"]
[White "ehrenfeld"]
[Black "Radzio1987"]
[Result "0-1"]
[WhiteElo "2537"]
[BlackElo "2845"]
[TimeControl "180+1"]
[EndTime "10:27:05 PDT"]
[Termination "Radzio1987 won by resignation"]

1. e4 {[%clk 0:02:56.8]} 1... c5 {[%clk 0:02:59.5]} 2. d3 {[%clk 0:02:56.2]}
2... Nc6 {[%clk 0:02:59.2]} 3. f4 {[%clk 0:02:55.9]} 3... g6 {[%clk 0:02:59.4]}
4. Nf3 {[%clk 0:02:55]} 4... Bg7 {[%clk 0:02:59.9]} 5. Be2 {[%clk 0:02:55.1]}
5... d6 {[%clk 0:03:00.4]} 6. O-O {[%clk 0:02:55]} 6... e6 {[%clk 0:03:00.3]} 7.
c3 {[%clk 0:02:54.3]} 7... Nge7 {[%clk 0:02:59.6]} 8. Be3 {[%clk 0:02:54]} 8...
O-O {[%clk 0:02:58.5]} 9. d4 {[%clk 0:02:54]} 9... b6 {[%clk 0:02:58.4]} 10. Na3
{[%clk 0:02:52]} 10... Bb7 {[%clk 0:02:57.7]} 11. dxc5 {[%clk 0:02:51]} 11...
bxc5 {[%clk 0:02:29.1]} 12. Nb5 {[%clk 0:02:44]} 12... Nc8 {[%clk 0:02:28.3]}
13. e5 {[%clk 0:02:37.1]} 13... dxe5 {[%clk 0:02:24.4]} 14. fxe5 {[%clk
0:02:33.1]} 14... Nxe5 {[%clk 0:02:21.7]} 15. Bxc5 {[%clk 0:02:16.4]} 15... Re8
{[%clk 0:02:12.6]} 16. Qxd8 {[%clk 0:01:49.3]} 16... Rxd8 {[%clk 0:02:13.5]} 17.
Rad1 {[%clk 0:01:46.1]} 17... Rd5 {[%clk 0:01:54.6]} 18. b4 {[%clk 0:01:22]}
18... Nb6 {[%clk 0:01:46.7]} 19. Nd6 {[%clk 0:01:08.2]} 19... Rxd1 {[%clk
0:01:39.4]} 20. Rxd1 {[%clk 0:01:06]} 20... Bxf3 {[%clk 0:01:36]} 21. gxf3
{[%clk 0:01:05.1]} 21... Na4 {[%clk 0:01:34.4]} 22. Bd4 {[%clk 0:00:49.6]} 22...
Rd8 {[%clk 0:01:27.6]} 23. Bxe5 {[%clk 0:00:32]} 23... Bxe5 {[%clk 0:01:23.9]}
24. Ne4 {[%clk 0:00:31.9]} 24... Rxd1+ {[%clk 0:01:18.8]} 25. Bxd1 {[%clk
0:00:31.3]} 25... Nxc3 {[%clk 0:01:19.4]} 26. Nxc3 {[%clk 0:00:30.8]} 26... Bxc3
{[%clk 0:01:20.3]} 27. b5 {[%clk 0:00:30.5]} 27... Kg7 {[%clk 0:01:19.2]} 28.
Kf2 {[%clk 0:00:30.4]} 28... Kf6 {[%clk 0:01:17.7]} 29. Ke3 {[%clk 0:00:30.5]}
29... g5 {[%clk 0:01:12.9]} 30. Ke4 {[%clk 0:00:27.8]} 30... Ke7 {[%clk
0:01:11.9]} 31. a4 {[%clk 0:00:26.4]} 31... Kd6 {[%clk 0:01:11.8]} 32. Bc2
{[%clk 0:00:25.8]} 32... f5+ {[%clk 0:01:10.8]} 33. Kd3 {[%clk 0:00:24.1]} 33...
Ba5 {[%clk 0:01:10.7]} 34. Kc4 {[%clk 0:00:23.6]} 34... h5 {[%clk 0:01:09.8]}
35. h3 {[%clk 0:00:21.9]} 35... Ke5 {[%clk 0:00:54.5]} 36. Kc5 {[%clk
0:00:18.9]} 36... Kf4 {[%clk 0:00:54.6]} 37. Kd6 {[%clk 0:00:17.4]} 37... e5
{[%clk 0:00:54.1]} 38. Ke6 {[%clk 0:00:16.6]} 38... e4 {[%clk 0:00:54.3]} 39.
fxe4 {[%clk 0:00:16.4]} 39... fxe4 {[%clk 0:00:55.2]} 40. Bd1 {[%clk 0:00:13.2]}
40... g4 {[%clk 0:00:55.2]} 41. hxg4 {[%clk 0:00:12.7]} 41... hxg4 {[%clk
0:00:56.1]} 0-1

[Event "*** SCC Grand Prix: Titled Tuesday Blitz"]
[Site "Chess.com"]
[Date "2020.09.29"]
[Round "3"]
[White "BogdanDeac"]
[Black "Witik"]
[Result "1-0"]
[WhiteElo "2905"]
[BlackElo "2672"]
[TimeControl "180+1"]
[EndTime "10:27:06 PDT"]
[Termination "BogdanDeac won by resignation"]

1. Nf3 {[%clk 0:03:00.9]} 1... d5 {[%clk 0:02:58.6]} 2. d4 {[%clk 0:03:00.7]}
2... e6 {[%clk 0:02:58.3]} 3. c4 {[%clk 0:03:00.8]} 3... c6 {[%clk 0:02:58.7]}
4. Qc2 {[%clk 0:03:00.2]} 4... Bd6 {[%clk 0:02:58.4]} 5. Bg5 {[%clk 0:02:53]}
5... f6 {[%clk 0:02:53.6]} 6. Bh4 {[%clk 0:02:50.6]} 6... Qa5+ {[%clk
0:02:19.4]} 7. Nbd2 {[%clk 0:02:46.3]} 7... f5 {[%clk 0:02:18.9]} 8. e3 {[%clk
0:02:27]} 8... Nf6 {[%clk 0:02:14.8]} 9. Bxf6 {[%clk 0:02:24.9]} 9... gxf6
{[%clk 0:02:14.7]} 10. cxd5 {[%clk 0:02:24.9]} 10... exd5 {[%clk 0:02:14]} 11.
Bd3 {[%clk 0:02:04.4]} 11... Na6 {[%clk 0:02:13.2]} 12. O-O {[%clk 0:00:52.1]}
12... Nb4 {[%clk 0:02:12.3]} 13. Qc3 {[%clk 0:00:52.3]} 13... Qc7 {[%clk
0:02:08.9]} 14. Be2 {[%clk 0:00:50.2]} 14... a5 {[%clk 0:02:04.6]} 15. a3 {[%clk
0:00:48.5]} 15... Na6 {[%clk 0:02:04.8]} 16. Bd3 {[%clk 0:00:48.8]} 16... Bd7
{[%clk 0:02:01]} 17. Qc2 {[%clk 0:00:44.8]} 17... f4 {[%clk 0:02:01.3]} 18. e4
{[%clk 0:00:43.4]} 18... O-O-O {[%clk 0:01:52.2]} 19. Rac1 {[%clk 0:00:31.3]}
19... Kb8 {[%clk 0:01:44.6]} 20. Bxa6 {[%clk 0:00:16.3]} 20... bxa6 {[%clk
0:01:44.6]} 21. Qd3 {[%clk 0:00:12.3]} 21... Qb6 {[%clk 0:01:37.6]} 22. Rc3
{[%clk 0:00:10.6]} 22... a4 {[%clk 0:01:37.4]} 23. b3 {[%clk 0:00:09.7]} 23...
Ka7 {[%clk 0:01:30.1]} 24. bxa4 {[%clk 0:00:09.4]} 24... Rb8 {[%clk 0:01:30.1]}
25. Rfc1 {[%clk 0:00:08.5]} 25... Rhg8 {[%clk 0:01:24]} 26. e5 {[%clk
0:00:05.1]} 26... fxe5 {[%clk 0:01:23.9]} 27. dxe5 {[%clk 0:00:05.8]} 27... Be7
{[%clk 0:01:20.4]} 28. Qxh7 {[%clk 0:00:04.9]} 28... Rge8 {[%clk 0:01:20.8]} 29.
e6 {[%clk 0:00:05.3]} 29... Bxe6 {[%clk 0:01:08]} 30. Rxc6 {[%clk 0:00:05.5]}
30... Qb2 {[%clk 0:01:08.7]} 31. Re1 {[%clk 0:00:05.5]} 31... Rb6 {[%clk
0:01:01.5]} 32. Rcxe6 {[%clk 0:00:04.5]} 32... Rxe6 {[%clk 0:01:01.2]} 33. Rxe6
{[%clk 0:00:05.4]} 33... Qa1+ {[%clk 0:01:02]} 34. Re1 {[%clk 0:00:05.5]} 34...
Qxa3 {[%clk 0:01:02.9]} 35. Qf7 {[%clk 0:00:05.6]} 35... Qxa4 {[%clk 0:00:50.5]}
36. Rxe7+ {[%clk 0:00:04.6]} 36... Rxe7 {[%clk 0:00:51]} 37. Qxe7+ {[%clk
0:00:05.5]} 37... Kb6 {[%clk 0:00:51.9]} 38. h4 {[%clk 0:00:06.1]} 38... Qa1+
{[%clk 0:00:51.8]} 39. Kh2 {[%clk 0:00:06.1]} 1-0